[Event "IIFL Wealth 4th Mumbai Open"]
[Site "Mumbai"]
[Date "2019.01.01"]
[Round "3"]
[White "Arnav Tiwari"]
[Black "Krishnan, Ritvik"]
[Result "1/2-1/2"]
[ECO "E61"]
[WhiteElo "2080"]
[BlackElo "1812"]
[Annotator "NA RC"]
[PlyCount "84"]
[EventDate "2018.12.30"]
[EventType "swiss"]
[EventCountry "IND"]
[SourceTitle "playchess.com"]
[Source "ChessBase"]
[SourceQuality "1"]
[TimeControl "40/5400+30:1800+30"]

1. d4 Nf6 2. c4 g6 3. Nc3 Bg7 4. Nf3 O-O 5. Bg5 d6 6. e3 c5 7. Be2 h6 8. Bh4 g5 9. Bg3 Nh5 10. Qc2 Nxg3 11. hxg3 f5 12. O-O g4 13. Nh4 cxd4 14. exd4 Bxd4 15. Rad1 Nc6 16. Bxg4 e6 17. Bf3 Bc5 18. Nb5 a6 19. Nc3 Nd4 20. Qd2 Qg5 21. Na4 Qxd2 22. Rxd2 e5 23. Bd5+ Kg7 24. Nxc5 dxc5 25. Nf3 Nxf3+ 26. Bxf3 e4 27. Be2 Be6 28. Rd6 Kf7 29. Rb6 Kf6 30. Rxb7 Rfd8 31. Rb6 Rd2 32. Re1 Ke7 33. g4 e3 34. fxe3 fxg4 35. Rb7+ Kf6 36. Rb6 Ke7 37. Rb7+ Kf6 38. Rb6 Ke7 39. Rb7+ Kf6 40. Rb6 Ke7 41. Rb7+ Kf6 42. Rb6 Ke7 1/2-1/2

[Event "IIFL Wealth 4th Mumbai Open"]
[Site "Mumbai"]
[Date "2019.01.01"]
[Round "3"]
[White "Sa, Kannan"]
[Black "Shashank, Chakradhari"]
[Result "1-0"]
[ECO "A45"]
[WhiteElo "2069"]
[BlackElo "1276"]
[Annotator "NA RC"]
[PlyCount "66"]
[EventDate "2018.12.30"]
[EventType "swiss"]
[EventCountry "IND"]
[SourceTitle "playchess.com"]
[Source "ChessBase"]
[SourceQuality "1"]
[TimeControl "40/5400+30:1800+30"]

1. d4 Nf6 2. Nh3 d5 3. Nf4 Nc6 4. e3 e5 5. dxe5 Nxe5 6. Be2 c6 7. O-O Ng6 8. Re1 Bd6 9. Bf3 Qc7 10. Nc3 Be6 11. g3 Ne5 12. Bg2 O-O-O 13. a3 g5 14. Nxe6 fxe6 15. Qd4 Kb8 16. e4 Rhg8 17. exd5 exd5 18. Be3 c5 19. Qa4 d4 {[#]} (19... Qc6 $16) 20. Nb5 $18 {Double Attack} Qb6 21. Bd2 a6 22. Nxd6 Qxd6 23. b4 c4 24. b5 c3 25. Bc1 Rde8 26. Rd1 axb5 27. Qxb5 Re7 28. Be3 Nc6 29. Rab1 Kc8 30. Bxg5 Rxg5 31. Qc5 Rf5 32. Qxf5+ {Ne4 Bf3+} Qe6 33. Be4 Nb8 1-0

[Event "IIFL Wealth 4th Mumbai Open"]
[Site "Mumbai"]
[Date "2019.01.01"]
[Round "3"]
[White "Vahdatian, Davood"]
[Black "Deshpande Jatin N"]
[Result "1-0"]
[ECO "B54"]
[WhiteElo "2036"]
[BlackElo "1564"]
[Annotator "NA RC"]
[PlyCount "53"]
[EventDate "2018.12.30"]
[EventType "swiss"]
[EventCountry "IND"]
[SourceTitle "playchess.com"]
[Source "ChessBase"]
[SourceQuality "1"]
[TimeControl "40/5400+30:1800+30"]

1. e4 c5 {[%emt 0:00:00]} 2. Nf3 {[%emt 0:05:45]} d6 {[%emt 0:00:01]} 3. d4 {[%emt 0:00:15]} cxd4 {[%emt 0:00:09]} 4. Nxd4 {[%emt 0:00:01]} Nf6 {[%emt 0:00:09]} 5. f3 {[%emt 0:01:10]} a6 {[%emt 0:00:14]} 6. c4 {[%emt 0:00:14]} Nc6 {[%emt 0:04:20]} 7. Nc3 {[%emt 0:00:03]} g6 {[%emt 0:00:23]} 8. Be3 {[%emt 0:00:08]} Bg7 {[%emt 0:00:16]} 9. Be2 {[%emt 0:00:09]} O-O {[%emt 0:02:20]} 10. Qd2 {[%emt 0:00:17]} Bd7 {[%emt 0:02:47]} 11. O-O {[%emt 0:00:15]} Rc8 {[%emt 0:00:09]} 12. Rac1 {[%emt 0:00:09]} Ne5 {[%emt 0:07:53]} 13. b3 {[%emt 0:00:02]} h5 {[%emt 0:05:13] B38: Sicilian: Maroczy Bind with 5...Bg7 and 7...0-0} (13... Re8 14. Nd5 Bc6 15. Rfd1 h5 16. h3 Ned7 17. Bf1 Nh7 18. Bf2 Nhf8 19. b4 Kh7 20. Be3 Ba4 21. Re1 Bc6 {1-0 (45) Batchuluun,T (2499)-Khatanbaatar,B (2365) Ulaanbaatar 2015}) 14. Kh1 {[%emt 0:02:47]} Kh7 {[%emt 0:04:43]} 15. Nc2 $146 {[%emt 0:02:38]} ({Predecessor:} 15. f4 Neg4 16. Bg1 e5 17. Nf3 Bc6 18. Ng5+ Kg8 19. h3 Nh6 {1-0 (49) Krutti,V (2300)-Kinez,I (2110) Harkany 1996}) 15... Qc7 {[%emt 0:07:59]} 16. Nb4 {[%emt 0:00:27]} Bc6 {[%emt 0:03:01]} 17. Rfd1 {[%emt 0:01:04]} Qa5 {[%emt 0:05:49]} 18. Nxc6 {[%emt 0:05:52]} bxc6 {[%emt 0:00:38]} 19. c5 {[%emt 0:09:59]} Rfd8 {[%emt 0:13:59]} 20. cxd6 {[%emt 0:01:02]} Rxd6 {[%emt 0:14:14]} 21. Nd5 {[%emt 0:01:05]} Qd8 {[%emt 0:02:49]} 22. Nxf6+ {[%emt 0:00:30]} Bxf6 {[%emt 0:00:22]} 23. Qc2 {[%emt 0:00:10]} a5 $18 {[%emt 0:02:01]} (23... Qa5 {was worth a try.} 24. f4 Rxd1+ 25. Rxd1 (25. Qxd1 Rd8 $16) 25... Ng4) 24. f4 {[%emt 0:00:19]} Ng4 {[%emt 0:01:48]} 25. Bxg4 {[%emt 0:00:04]} hxg4 {[%emt 0:00:58]} 26. e5 {[%emt 0:00:03]} Rxd1+ {[%emt 0:00:55]} 27. Rxd1 {[%emt 0:00:09]} 1-0

[Event "IIFL Wealth 4th Mumbai Open"]
[Site "Mumbai"]
[Date "2019.01.01"]
[Round "3"]
[White "Thatte, Ashish P"]
[Black "Sarvade Mihiir"]
[Result "1-0"]
[ECO "D53"]
[WhiteElo "1957"]
[BlackElo "1570"]
[Annotator "NA RC"]
[PlyCount "75"]
[EventDate "2018.12.30"]
[EventType "swiss"]
[EventCountry "IND"]
[SourceTitle "playchess.com"]
[Source "ChessBase"]
[SourceQuality "1"]
[TimeControl "40/5400+30:1800+30"]

1. d4 {[%emt 0:00:36]} d5 {[%emt 0:01:31]} 2. c4 {[%emt 0:00:07]} e6 {[%emt 0:00:01]} 3. Nc3 {[%emt 0:00:34]} Nf6 {[%emt 0:00:14]} 4. Bg5 {[%emt 0:00:11]} Be7 {[%emt 0:00:31]} 5. Nf3 {[%emt 0:00:29]} h6 {[%emt 0:00:34]} 6. Bh4 {[%emt 0:00:38]} O-O {[%emt 0:00:15]} 7. cxd5 {[%emt 0:00:10]} exd5 {[%emt 0:03:36]} 8. e3 {[%emt 0:02:14]} c6 {[%emt 0:06:51]} 9. Qc2 {[%emt 0:00:16]} Nbd7 {[%emt 0:00:32]} 10. Bd3 {[%emt 0:01:05]} Re8 {[%emt 0:00:17]} 11. O-O {[%emt 0:00:10]} Ne4 {[%emt 0:04:29]} 12. Bg3 {[%emt 0:05:21]} Nxg3 {[%emt 0:04:53]} 13. hxg3 {[%emt 0:00:08]} Nf6 {[%emt 0:07:15]} 14. Bf5 {[%emt 0:15:04] D36: Queen's Gambit Declined: Exchange Variation: Main line (5 Bg5 c6 6 Qc2)} (14. Rab1 Be6 15. Ne5 Ng4 16. Nxg4 Bxg4 17. b4 a6 18. a4 Rc8 19. Qb3 Be6 20. Rfc1 Qd6 21. b5 axb5 22. axb5 {0-1 (49) Vasilevich,T (2360)-Chan,N (1967) Sochi 2018}) 14... Bxf5 {[%emt 0:16:01]} 15. Qxf5 {[%emt 0:00:08]} Qd7 $146 {[%emt 0:02:01]} ({Predecessor:} 15... Bd6 16. Rab1 a5 17. a3 Qd7 18. Qc2 Qg4 19. b4 axb4 20. axb4 Qh5 21. b5 Ng4 22. bxc6 bxc6 {1-0 (36) Megalios,K (1933)-Kanellos,D (1959) Peristeri 2011}) 16. Qxd7 {[%emt 0:12:37]} Nxd7 {[%emt 0:00:32]} 17. Rab1 {[%emt 0:00:09]} a5 {[%emt 0:05:41]} 18. Ne1 {[%emt 0:11:03]} Bb4 {[%emt 0:16:03]} 19. Nd3 {[%emt 0:10:59]} Bxc3 {[%emt 0:02:34]} 20. bxc3 $11 {[%emt 0:00:02]} b5 {[%emt 0:01:33]} 21. Rfe1 {[%emt 0:04:06]} a4 {[%emt 0:02:08]} 22. g4 {[%emt 0:06:11]} Re7 {[%emt 0:11:50]} 23. f3 {[%emt 0:07:23]} Rae8 {[%emt 0:05:32]} 24. Kf2 {[%emt 0:00:42]} Nb6 {[%emt 0:04:02]} 25. Nb4 {[%emt 0:03:23]} Re6 {[%emt 0:01:36]} 26. e4 {[%emt 0:02:51]} dxe4 {[%emt 0:00:44]} 27. Rxe4 {[%emt 0:01:18]} Rxe4 {[%emt 0:00:45]} 28. fxe4 {[%emt 0:00:07]} Rxe4 {[%emt 0:00:29]} 29. Nxc6 {[%emt 0:00:23]} Nd5 {[%emt 0:00:40]} 30. Rxb5 {[%emt 0:11:52]} Nxc3 {[%emt 0:00:02]} 31. Rc5 {[%emt 0:00:48]} Nd1+ {[%emt 0:01:46]} 32. Kg1 {[%emt 0:02:56]} Rxg4 {[%emt 0:00:26]} 33. d5 {[%emt 0:00:29]} Rg5 {[%emt 0:00:34]} 34. Rc2 {[%emt 0:00:52]} Ne3 {[%emt 0:00:14]} 35. Rd2 {[%emt 0:00:07]} Kf8 {[%emt 0:00:24]} 36. d6 {[%emt 0:00:01]} Rxg2+ {[%emt 0:00:50]} 37. Rxg2 {[%emt 0:00:08]} Nxg2 {[%emt 0:00:01]} 38. d7 1-0

[Event "IIFL Wealth 4th Mumbai Open"]
[Site "Mumbai"]
[Date "2019.01.01"]
[Round "3"]
[White "Aditya, Varun Gampa"]
[Black "Adireddy Tarun"]
[Result "1-0"]
[ECO "A45"]
[WhiteElo "1809"]
[BlackElo "1661"]
[Annotator "NA RC"]
[PlyCount "111"]
[EventDate "2018.12.30"]
[EventType "swiss"]
[EventCountry "IND"]
[SourceTitle "playchess.com"]
[Source "ChessBase"]
[SourceQuality "1"]
[TimeControl "40/5400+30:1800+30"]

1. d4 {[%emt 0:01:31]} Nf6 {[%emt 0:00:56]} 2. Bf4 {[%emt 0:00:25]} e6 {[%emt 0:00:06]} 3. e3 {[%emt 0:00:36]} c5 {[%emt 0:00:05]} 4. c3 {[%emt 0:00:37]} Nc6 {[%emt 0:00:06]} 5. Nd2 {[%emt 0:00:18]} d5 {[%emt 0:00:06]} 6. Ngf3 {[%emt 0:00:20]} Bd6 {[%emt 0:00:07]} 7. Bg3 {[%emt 0:00:24]} O-O {[%emt 0:00:17]} 8. Bd3 {[%emt 0:00:05]} b6 {[%emt 0:00:07]} 9. e4 {[%emt 0:00:28] D02: 1 d4 d5 2 Nf3 sidelines, including 2...Nf6 3 g3 and 2...Nf6 3 Bf4} Be7 {[%emt 0:00:20]} 10. e5 {[%emt 0:01:21]} Nd7 {[%emt 0:01:27]} (10... Nh5 11. Nf1 cxd4 12. Nxd4 Nxd4 13. cxd4 g6 14. Ne3 f5 15. exf6 Bxf6 16. Be2 Nxg3 17. hxg3 {½-½ (37) Nakamura,H (2787)-Svidler,P (2760) Moscow 2018}) 11. h4 {[%emt 0:02:51]} f5 {[%emt 0:23:13]} 12. Ng5 $146 {[%emt 0:16:55]} ({Predecessor:} 12. exf6 Rxf6 13. Qe2 cxd4 14. cxd4 Nb4 15. Bb1 Ba6 16. Qe3 Rc8 {0-1 (48) Vittal,S (1947)-Yu,J (2358) Saint Louis 2018}) 12... Bxg5 {[%emt 0:08:10]} 13. hxg5 {[%emt 0:00:50]} g6 {[%emt 0:01:30]} 14. Nf3 {[%emt 0:03:18]} Rf7 {[%emt 0:02:17]} 15. Qd2 {[%emt 0:06:34]} c4 {[%emt 0:09:22]} 16. Bc2 {[%emt 0:03:31]} Rb8 {[%emt 0:04:09]} 17. Ke2 {[%emt 0:02:04]} b5 {[%emt 0:03:41]} 18. Rh6 {[%emt 0:02:46]} Nf8 {[%emt 0:01:27]} 19. Rah1 {[%emt 0:01:22]} Qe7 {[%emt 0:02:09]} 20. Nh4 {[%emt 0:04:10]} Rg7 {[%emt 0:01:23]} 21. Bf4 {[%emt 0:02:34]} Rb7 {[%emt 0:06:39]} 22. g4 {[%emt 0:01:42]} Qf7 {[%emt 0:01:36]} 23. gxf5 {[%emt 0:03:09]} exf5 {[%emt 0:00:08]} 24. Bd1 {[%emt 0:02:57]} Be6 {[%emt 0:02:14]} 25. Kf1 {[%emt 0:02:15]} a6 {[%emt 0:01:39]} 26. Ng2 {[%emt 0:01:46]} Ra7 {[%emt 0:06:57]} 27. Be3 {[%emt 0:01:25]} Rc7 {[%emt 0:00:31]} 28. Nf4 {[%emt 0:00:42]} Ne7 {[%emt 0:00:40]} 29. Bf3 {[%emt 0:02:25]} Rb7 {[%emt 0:01:48]} 30. R1h3 {[%emt 0:07:21]} Ra7 {[%emt 0:03:47]} 31. Kg2 {[%emt 0:00:49]} Rc7 {[%emt 0:00:12]} 32. Kh2 {[%emt 0:00:18]} Rb7 {[%emt 0:00:27]} 33. b3 {[%emt 0:00:46]} a5 {[%emt 0:01:50]} 34. Qb2 {[%emt 0:01:06]} Nc6 {[%emt 0:05:58]} 35. bxc4 {[%emt 0:02:35]} bxc4 {[%emt 0:00:09]} 36. Qa3 {[%emt 0:00:19]} Qd7 {[%emt 0:06:28]} 37. Qc5 {[%emt 0:01:50]} Ne7 {[%emt 0:00:03]} 38. Qxa5 {[%emt 0:01:25]} Ra7 {[%emt 0:00:18]} 39. Qb6 {[%emt 0:01:45]} Rxa2 {[%emt 0:00:55]} 40. Qd6 {[%emt 0:00:00]} Ra7 {[%emt 0:00:00]} 41. Kg2 {[%emt 0:01:37]} Nc8 {[%emt 0:02:35]} 42. Nxd5 {[%emt 0:04:35]} Nxd6 {[%emt 0:01:38]} 43. Nf6+ {[%emt 0:00:52]} Kf7 {[%emt 0:00:13]} 44. Nxd7 {[%emt 0:00:05]} Rxd7 {[%emt 0:00:27]} 45. exd6 {[%emt 0:00:31]} Rxd6 {[%emt 0:00:22]} 46. Bf4 {[%emt 0:00:12]} Rd7 {[%emt 0:04:44]} 47. Be5 {[%emt 0:01:13]} Rg8 {[%emt 0:01:08]} 48. Rh1 {[%emt 0:01:26]} Rd8 $18 {[%emt 0:11:59]} (48... Rg7 $142 49. Ra1 Bd5 50. Bxd5+ Rxd5 51. Bxg7 Kxg7) 49. Ra1 {[%emt 0:01:41]} Rc8 {[%emt 0:00:54]} 50. Ra7+ {[%emt 0:00:12]} Ke8 {[%emt 0:00:06]} 51. Bf6 {[%emt 0:00:40]} Nd7 {[%emt 0:01:43]} 52. Rxh7 {[%emt 0:00:17]} Bf7 {[%emt 0:00:10]} 53. Rxf7 {[%emt 0:00:33]} Kxf7 {[%emt 0:00:02]} 54. Bd5+ {[%emt 0:00:47]} Kf8 {[%emt 0:00:09]} 55. Rxd7 {[%emt 0:00:10]} Rc7 {[%emt 0:00:02]} 56. Rd8# 1-0

[Event "IIFL Wealth 4th Mumbai Open"]
[Site "Mumbai"]
[Date "2019.01.01"]
[Round "3"]
[White "Devesh, Anand Naik"]
[Black "Rushyendra Chowdary Kantipudi"]
[Result "0-1"]
[ECO "B24"]
[WhiteElo "1763"]
[BlackElo "1527"]
[Annotator "NA RC"]
[PlyCount "86"]
[EventDate "2018.12.30"]
[EventType "swiss"]
[EventCountry "IND"]
[SourceTitle "playchess.com"]
[Source "ChessBase"]
[SourceQuality "1"]
[TimeControl "40/5400+30:1800+30"]

1. e4 c5 2. Nc3 Nc6 3. Bb5 Nd4 4. Bc4 e6 5. Nf3 Nc6 6. d4 cxd4 7. Nxd4 Nf6 8. Be3 Bb4 9. Nxc6 bxc6 10. Bd3 d5 11. exd5 cxd5 12. O-O O-O 13. Bd4 Bb7 14. Ne2 Bd6 15. f4 Qe7 16. c3 Bc5 17. Bxc5 Qxc5+ 18. Nd4 Rab8 19. Qe2 Rfe8 20. Rf3 Qd6 21. Raf1 Ne4 22. Rh3 g6 23. Qg4 f5 24. Qh4 Qe7 25. Qxe7 Rxe7 26. Re3 Kf7 27. Nf3 Kf6 28. Ne5 g5 29. Rh3 gxf4 30. Nf3 Rg8 31. Nd4 e5 32. Rh6+ Rg6 33. Rxg6+ hxg6 34. Ne2 Nc5 35. Bc2 Ba6 36. Rf2 d4 37. cxd4 exd4 38. Bd1 d3 39. Nc3 Re1+ 40. Rf1 d2 41. Be2 Bxe2 42. Nxe2 d1=Q 43. Rxe1 Qxe1# 0-1

[Event "IIFL Wealth 4th Mumbai Open"]
[Site "Mumbai"]
[Date "2019.01.01"]
[Round "3"]
[White "Kapadi, Yash"]
[Black "Kambli, Pushkaraj"]
[Result "1-0"]
[ECO "A08"]
[WhiteElo "1749"]
[BlackElo "1518"]
[Annotator "NA RC"]
[PlyCount "65"]
[EventDate "2018.12.30"]
[EventType "swiss"]
[EventCountry "IND"]
[SourceTitle "playchess.com"]
[Source "ChessBase"]
[SourceQuality "1"]
[TimeControl "40/5400+30:1800+30"]

1. Nf3 {[%emt 0:07:22]} c5 {[%emt 0:00:19]} 2. g3 {[%emt 0:00:19]} d5 {[%emt 0:00:13]} 3. Bg2 {[%emt 0:00:07]} Nf6 {[%emt 0:00:06]} 4. O-O {[%emt 0:00:16]} Nc6 {[%emt 0:00:19]} 5. d4 {[%emt 0:00:09]} e6 {[%emt 0:00:30]} 6. c4 {[%emt 0:00:22]} Be7 {[%emt 0:02:38]} 7. Nc3 {[%emt 0:00:46]} h6 {[%emt 0:01:08]} 8. cxd5 {[%emt 0:02:08]} exd5 {[%emt 0:00:11]} 9. a3 {[%emt 0:00:55]} O-O {[%emt 0:03:23]} 10. dxc5 {[%emt 0:02:06]} Bxc5 {[%emt 0:00:11]} 11. b4 {[%emt 0:00:09]} Be7 {[%emt 0:04:12]} 12. Bb2 {[%emt 0:02:56]} Be6 {[%emt 0:04:12]} 13. Nd4 {[%emt 0:00:43]} Rc8 {[%emt 0:01:10]} 14. Nxe6 {[%emt 0:00:11]} fxe6 {[%emt 0:00:03]} 15. Qb3 {[%emt 0:00:35]} Nd4 {[%emt 0:03:44]} 16. Qd1 {[%emt 0:01:22]} Nc6 {[%emt 0:00:03]} 17. Bh3 {[%emt 0:01:20]} Qd7 {[%emt 0:05:25]} 18. e4 {[%emt 0:04:49]} Rcd8 {[%emt 0:11:23]} 19. exd5 {[%emt 0:42:10]} Nxd5 {[%emt 0:00:16]} 20. Ne4 {[%emt 0:01:49]} Rde8 {[%emt 0:17:13]} 21. Re1 {[%emt 0:03:40]} Nd8 {[%emt 0:03:37]} 22. Nc3 {[%emt 0:11:19]} Qc6 {[%emt 0:07:08]} 23. Rc1 {[%emt 0:02:26]} Qb6 {[%emt 0:04:05]} 24. Ne4 {[%emt 0:01:33]} a5 {[%emt 0:02:18]} 25. Bd4 {[%emt 0:00:46]} Qb5 {[%emt 0:01:24]} 26. Nc5 {[%emt 0:02:18]} axb4 {[%emt 0:03:39]} 27. Nxe6 {[%emt 0:00:38]} Nxe6 {[%emt 0:01:13]} 28. Bxe6+ {[%emt 0:00:03]} Kh7 {[%emt 0:00:30]} 29. Qg4 {[%emt 0:01:05]} g6 {[%emt 0:07:34]} 30. a4 {[%emt 0:02:16]} Qa5 {[%emt 0:01:38]} 31. Re5 {[%emt 0:01:59]} Rd8 {[%emt 0:00:50]} 32. Bxd5 {[%emt 0:00:27]} Bf6 {[%emt 0:03:49]} 33. Be4 1-0

[Event "IIFL Wealth 4th Mumbai Open"]
[Site "Mumbai"]
[Date "2019.01.01"]
[Round "3"]
[White "Arhan, Chethan Anand"]
[Black "Ratnapriya K"]
[Result "1/2-1/2"]
[ECO "E32"]
[WhiteElo "1710"]
[BlackElo "1508"]
[Annotator "NA RC"]
[PlyCount "161"]
[EventDate "2018.12.30"]
[EventType "swiss"]
[EventCountry "IND"]
[SourceTitle "playchess.com"]
[Source "ChessBase"]
[SourceQuality "1"]
[TimeControl "40/5400+30:1800+30"]

1. d4 Nf6 2. c4 e6 3. Nc3 Bb4 4. Qc2 O-O 5. a3 Bxc3+ 6. Qxc3 b6 7. Bg5 Bb7 8. e3 h6 9. Bh4 d6 10. Nf3 g5 11. Bg3 Ne4 12. Qc2 f5 13. Bd3 Nd7 14. O-O-O Qf6 15. Kb1 e5 16. Ne1 exd4 17. exd4 c5 18. d5 Nxg3 19. hxg3 Ne5 20. Be2 Bc8 21. f4 Ng4 22. Rc1 Nf2 23. Rf1 Ne4 24. Rf3 g4 25. Re3 Qd4 26. Qd3 Nd2+ 27. Ka2 Bd7 {Kb1 Bc8+ Ka2 Bd7} 28. Rd1 Qxd3 29. Bxd3 Rae8 30. Nc2 Ne4 31. Bxe4 fxe4 32. Rde1 Bf5 33. Rc3 h5 34. Ne3 Bg6 35. Rh1 Kg7 36. Rcc1 Kg8 37. Rc3 Kg7 38. Rcc1 Rh8 39. Rcf1 Kf6 40. Kb3 Bf5 41. Kc3 Kg6 42. Rh4 Rh7 43. Rfh1 Reh8 44. Kd2 Kf6 45. a4 Bd7 46. b3 Bf5 47. Nd1 Kg6 48. Ke3 a6 49. Nc3 Rb7 50. Ra1 Rbh7 51. Rah1 Rb7 52. Ra1 Rhb8 53. Rhh1 Re7 54. Rab1 Reb7 55. Ra1 Re7 56. Rhb1 Reb7 57. b4 Bd7 58. b5 a5 59. Rh1 Bf5 60. Rh4 Rh7 61. Rah1 Re8 62. Ra1 Rb8 63. Rah1 Re8 64. Re1 Rhe7 65. Nd1 Rh7 66. Nc3 Rhe7 67. Nd1 Rh7 68. Kd2 Rhe7 69. Ne3 Rh7 70. Reh1 Reh8 71. Nxf5 Kxf5 72. Ke3 Rh6 73. R1h2 R6h7 74. Rh1 Rh6 75. Rc1 R6h7 76. Rch1 Rh6 77. R1h2 R6h7 78. Rh1 Rh6 79. R1h2 R6h7 80. Rh1 Rh6 81. R1h2 {Ke5} 1/2-1/2

[Event "IIFL Wealth 4th Mumbai Open"]
[Site "Mumbai"]
[Date "2019.01.01"]
[Round "3"]
[White "Tamhankar, Siddhant"]
[Black "Abhinav Dubey"]
[Result "0-1"]
[ECO "B90"]
[WhiteElo "1704"]
[BlackElo "1425"]
[Annotator "NA RC"]
[PlyCount "76"]
[EventDate "2018.12.30"]
[EventType "swiss"]
[EventCountry "IND"]
[SourceTitle "playchess.com"]
[Source "ChessBase"]
[SourceQuality "1"]
[TimeControl "40/5400+30:1800+30"]

1. e4 {[%emt 0:00:00]} c5 {[%emt 0:00:00]} 2. Nf3 {[%emt 0:00:00]} d6 {[%emt 0:00:00]} 3. d4 {[%emt 0:00:11]} cxd4 {[%emt 0:00:00]} 4. Nxd4 {[%emt 0:00:13]} Nf6 {[%emt 0:00:00]} 5. Nc3 {[%emt 0:00:08]} a6 {[%emt 0:00:00]} 6. Bc4 {[%emt 0:00:08]} e6 {[%emt 0:00:06]} 7. Bb3 {[%emt 0:00:08]} Nbd7 {[%emt 0:00:04]} 8. O-O {[%emt 0:00:17]} Nc5 {[%emt 0:00:14]} 9. f4 {[%emt 0:08:27]} b5 {[%emt 0:04:00]} 10. e5 {[%emt 0:17:18]} Nfd7 {[%emt 0:00:15]} 11. Nf3 {[%emt 0:11:57]} dxe5 {[%emt 0:03:52]} 12. fxe5 {[%emt 0:00:15]} Be7 {[%emt 0:00:08]} 13. Qe2 {[%emt 0:02:21]} O-O {[%emt 0:00:49]} 14. Bf4 {[%emt 0:01:51]} Bb7 {[%emt 0:00:48]} 15. Rad1 {[%emt 0:01:01]} Rc8 {[%emt 0:06:22]} 16. Kh1 {[%emt 0:02:02]} Qc7 {[%emt 0:02:09]} 17. a3 {[%emt 0:03:05]} Qb6 {[%emt 0:11:36]} 18. Be3 {[%emt 0:03:57]} Qc7 {[%emt 0:05:33]} 19. Bf4 {[%emt 0:03:12]} Qb6 {[%emt 0:00:25]} 20. Ng5 {[%emt 0:03:24]} h6 {[%emt 0:00:50]} 21. Nh3 {[%emt 0:05:34]} Qc6 {[%emt 0:01:58]} 22. Rf3 {[%emt 0:03:44]} Nxb3 {[%emt 0:12:51]} 23. cxb3 {[%emt 0:00:55]} Nc5 {[%emt 0:00:06]} 24. Re3 {[%emt 0:10:55]} Rfd8 {[%emt 0:00:55]} 25. Rf1 {[%emt 0:01:28]} Nxb3 {[%emt 0:01:17]} 26. Rg3 {[%emt 0:00:46]} Nd4 {[%emt 0:00:32]} 27. Qh5 {[%emt 0:04:10]} Nf5 {[%emt 0:00:29]} 28. Rg4 {[%emt 0:06:01]} g6 {[%emt 0:03:41]} 29. Rxg6+ {[%emt 0:00:52]} fxg6 {[%emt 0:00:09]} 30. Qxg6+ {[%emt 0:00:02]} Ng7 {[%emt 0:00:17]} 31. Bxh6 {[%emt 0:03:42]} Qxg2+ {[%emt 0:00:29]} 32. Qxg2 {[%emt 0:00:02]} Bxg2+ {[%emt 0:00:05]} 33. Kxg2 {[%emt 0:00:03]} Nf5 {[%emt 0:00:02]} 34. Bg5 {[%emt 0:01:13]} Bxg5 {[%emt 0:00:04]} 35. Nxg5 {[%emt 0:00:22]} Ne3+ {[%emt 0:00:01]} 36. Kf2 {[%emt 0:00:52]} Nxf1 {[%emt 0:00:02]} 37. Kxf1 {[%emt 0:00:02]} Rd2 {[%emt 0:00:13]} 38. Ne2 {[%emt 0:01:47]} Rcc2 {[%emt 0:00:38]} 0-1

[Event "IIFL Wealth 4th Mumbai Open"]
[Site "Mumbai"]
[Date "2019.01.01"]
[Round "3"]
[White "Mayank, Chakraborty"]
[Black "Apoorv, Kamble"]
[Result "0-1"]
[ECO "B16"]
[WhiteElo "1691"]
[BlackElo "1458"]
[Annotator "NA RC"]
[PlyCount "108"]
[EventDate "2018.12.30"]
[EventType "swiss"]
[EventCountry "IND"]
[SourceTitle "playchess.com"]
[Source "ChessBase"]
[SourceQuality "1"]
[TimeControl "40/5400+30:1800+30"]

1. e4 {[%emt 0:00:00]} c6 {[%emt 0:00:00]} 2. d4 {[%emt 0:00:00]} d5 {[%emt 0:00:00]} 3. Nd2 {[%emt 0:00:17]} dxe4 {[%emt 0:00:00]} 4. Nxe4 {[%emt 0:00:09]} Nf6 {[%emt 0:00:05]} 5. Nxf6+ {[%emt 0:00:20]} gxf6 {[%emt 0:00:02]} 6. Nf3 {[%emt 0:00:23]} Bf5 {[%emt 0:00:05]} 7. Bd3 {[%emt 0:00:33]} Bg6 {[%emt 0:00:10]} 8. Bf4 {[%emt 0:00:12]} e6 {[%emt 0:00:06]} 9. O-O {[%emt 0:00:24]} Bd6 {[%emt 0:00:06]} 10. Bxd6 {[%emt 0:06:10]} Qxd6 {[%emt 0:00:23]} 11. Bxg6 {[%emt 0:00:35]} hxg6 {[%emt 0:00:09]} 12. Qd3 {[%emt 0:00:53]} Nd7 {[%emt 0:00:26]} 13. c3 {[%emt 0:05:56]} O-O-O {[%emt 0:03:06]} 14. a4 {[%emt 0:01:10]} Ne5 {[%emt 0:01:59]} 15. Nxe5 {[%emt 0:05:21]} fxe5 {[%emt 0:00:07]} 16. g3 {[%emt 0:08:17]} Qd5 {[%emt 0:04:25]} 17. f3 {[%emt 0:03:42]} exd4 {[%emt 0:00:46]} 18. cxd4 {[%emt 0:02:04]} Qxd4+ {[%emt 0:00:39]} 19. Qxd4 {[%emt 0:00:10]} Rxd4 {[%emt 0:00:06]} 20. Rf2 {[%emt 0:00:47]} Rhd8 {[%emt 0:00:30]} 21. Kg2 {[%emt 0:02:38]} a5 {[%emt 0:01:08]} 22. h4 {[%emt 0:01:53]} Rb4 {[%emt 0:02:32]} 23. Ra3 {[%emt 0:00:09]} Rdd4 {[%emt 0:00:50]} 24. b3 {[%emt 0:00:46]} Rd3 {[%emt 0:01:10]} 25. Rb2 {[%emt 0:00:51]} Kd7 {[%emt 0:00:27]} 26. Kf2 {[%emt 0:00:07]} c5 {[%emt 0:02:02]} 27. Ke2 {[%emt 0:02:11]} c4 {[%emt 0:08:39]} 28. Rc2 {[%emt 0:04:35]} Rdxb3 {[%emt 0:01:09]} 29. Rxb3 cxb3 {[%emt 0:00:15]} 30. Rb2 {[%emt 0:00:17]} f5 {[%emt 0:00:13]} 31. Kd3 {[%emt 0:00:07]} b5 {[%emt 0:08:16]} 32. axb5 {[%emt 0:00:46]} a4 {[%emt 0:01:26]} 33. Kc3 {[%emt 0:00:18]} Rxb5 {[%emt 0:00:12]} 34. Kc4 {[%emt 0:00:05]} Ra5 {[%emt 0:00:47]} 35. Kb4 {[%emt 0:00:09]} Ra6 {[%emt 0:05:36]} 36. Ka3 {[%emt 0:00:11]} Kc6 {[%emt 0:00:53]} 37. Re2 {[%emt 0:04:41]} Kd5 {[%emt 0:01:17]} 38. g4 {[%emt 0:00:05]} fxg4 {[%emt 0:04:08]} 39. fxg4 {[%emt 0:00:07]} e5 {[%emt 0:00:05]} 40. h5 {[%emt 0:00:00]} gxh5 {[%emt 0:00:00]} 41. gxh5 {[%emt 0:02:07]} e4 {[%emt 0:01:48]} 42. Rh2 {[%emt 0:00:36]} Rh6 {[%emt 0:06:15]} 43. Rh4 {[%emt 0:01:39]} e3 {[%emt 0:02:30]} 44. Kxa4 {[%emt 0:00:07]} b2 {[%emt 0:01:22]} 45. Rh1 {[%emt 0:00:11]} Ra6+ {[%emt 0:00:44]} 46. Kb3 {[%emt 0:00:27]} Rb6+ {[%emt 0:00:44]} 47. Kc2 {[%emt 0:00:07]} b1=Q+ {[%emt 0:00:06]} 48. Rxb1 {[%emt 0:00:08]} Rxb1 {[%emt 0:00:05]} 49. Kd3 {[%emt 0:00:12]} Rb3+ {[%emt 0:00:33]} 50. Ke2 {[%emt 0:00:06]} Ke4 {[%emt 0:00:04]} 51. h6 {[%emt 0:00:05]} Rb2+ {[%emt 0:00:06]} 52. Kf1 {[%emt 0:00:06]} Kf3 {[%emt 0:00:05]} 53. Kg1 {[%emt 0:00:06]} e2 {[%emt 0:00:22]} 54. h7 {[%emt 0:00:04]} e1=Q# {[%emt 0:00:06]} 0-1